Cogmind - Beta 13 @@@ ROGUE MODE // 2024.04.19 @ 23:56:27 Player: Body_Elektric Result: Destroyed by Explosive Trap Performance ------------- Evolutions (0) 0 Regions Visited (1) 200 Robots Destroyed (80) 400 Value Destroyed (969) 969 Prototype IDs (1) 20 Alien Tech Used (0) 0 Bonus (8) 8 TOTAL SCORE: 1597 Bonus ------- High Alert Combat Kills 8 Cogmind --------- Core Integrity 0/250 Matter 295/300 Energy 100/100 System Corruption 14% Temperature Cool (0) Movement Treading (160) Location -10/Materials Parts ------- > --- POWER (1) -------- (None) > --- PROPULSION (2) --- Light Treads > --- UTILITY (2) ------ Medium Storage Unit Seismic Detector > --- WEAPON (2) ------- (None) > --- INVENTORY (10) --- Light Treads Light Treads Wheel Medium Armor Plating Backup Laser I Beam Cannon Improved Assault Rifle Improved Assault Rifle Light Cannon Peak State ------------ > --- POWER ------------ Light Ion Engine > --- PROPULSION ------- Light Treads Light Treads > --- UTILITY ---------- Medium Storage Unit Seismic Detector > --- WEAPON ----------- Improved Assault Rifle Improved Assault Rifle > --- INVENTORY -------- Ion Engine Light Treads Wheel Wheel Small Storage Unit Medium Armor Plating Improved Assault Rifle [Rating: 12] Favorites ----------- Power Ion Engine Engine Ion Engine Propulsion Light Treads Treads Light Treads Wheel Wheel Utility Seismic Detector Device Seismic Detector Storage Medium Storage Unit Weapon Improved Assault Rifle Energy Gun EM Pulse Gun Ballistic Gun Improved Assault Rifle Special Weapon Mining Laser Impact Weapon Hammer Build | -11 -10 ------- Run | Yrd Mat Slots Evolved . | . . Power . | . . Propulsion . | . . Utility . | . . Weapon . | . . Parts Attached 25 | 8 17 Power 4 | 1 3 Engine 4 | 1 3 Core . | . . Reactor . | . . Propulsion 5 | 2 3 Treads 3 | 2 1 Leg . | . . Wheel 2 | . 2 Hover . | . . Flight . | . . Utility 3 | 2 1 Device 1 | 1 . Storage 2 | 1 1 Processor . | . . Hackware . | . . Protection . | . . Artifact . | . . Weapon 13 | 3 10 Energy Gun 1 | 1 . Energy Cannon . | . . Ballistic Gun 8 | 2 6 Ballistic Cannon . | . . Launcher . | . . Special Weapon 1 | . 1 Impact Weapon 3 | . 3 Slashing Weapon . | . . Piercing Weapon . | . . Special Melee Weapon . | . . Unidentified Prototypes 1 | . 1 Parts Lost 5 | . 5 Power 2 | . 2 Propulsion 1 | . 1 Utility . | . . Weapon 2 | . 2 Highest Loss Streak 2 | . 2 To Critical Strikes . | . . Average Slot Usage (%) 97 | . 97 Engine 12 | . 12 Treads 22 | . 22 Wheel 3 | . 3 Device 14 | . 14 Storage 14 | . 14 Ballistic Gun 19 | . 19 Impact Weapon 7 | . 7 Naked Turns . | . . Heaviest Build 22 | 11 22 Greatest Support 40 | 40 40 Greatest Overweight (x) 2 | . 2 Average Overweight (x) . | . . Largest Inventory Capacity 10 | 8 10 Average Capacity 9 | 7 9 Most Carried 10 | 4 10 Average Carried 8 | 1 9 Final Capacity 10 | 8 10 Final Carried 9 | 4 9 Class Distribution -------------------- 71% | Scavenger-Mutant 28% | Mutant Dominant Class ---------------- Scavenger-Mutant | -10/Materials Resources | -11 -10 ----------- Run | Yrd Mat Matter Collected 1358 | 337 1021 Remotely . | . . Salvage Created 2512 | 180 2332 Parts 136 | 15 121 Haulers Intercepted 2 | . 2 Recyclers Shooed 6 | 1 5 Parts Field Recycled . | . . Retrieved Matter . | . . Parts Self-Destructed . | . . Prevented . | . . Kills | -11 -10 ------- Run | Yrd Mat Combat Hostiles Destroyed 22 | . 22 Guns 21 | . 21 AOE 1 | . 1 Classes Destroyed 9 | 3 6 Worker 33 | 3 30 Builder 29 | . 29 Tunneler 2 | 1 1 Hauler 2 | . 2 Recycler 7 | 1 6 Operator 1 | . 1 Watcher 3 | . 3 Swarmer 9 | . 9 Grunt 13 | . 13 Best Kill Streak 5 | 2 5 Combat Bots Only 4 | . 4 Max Kills in Single Turn 2 | 1 2 Gunslinging 1 | . 1 Exploded 1 | . 1 Melee . | . . Uniques/NPCs Destroyed . | . . Combat | -11 -10 -------- Run | Yrd Mat Hostile Shots Fired 98 | . 98 Missed 27 | . 27 Damage Taken 1375 | . 1375 Core 258 | . 258 Absorbed by Shields . | . . Core Remaining (%) 100 | 100 . Volleys Fired 181 | 15 166 Largest 2 | 2 2 Hottest 123 | 40 123 Shots Fired 354 | 30 324 Gun 353 | 30 323 Cannon . | . . Launcher . | . . Special 1 | . 1 Kinetic 353 | 30 323 Thermal 1 | . 1 Explosive . | . . Electromagnetic . | . . Robot Hit Streak 24 | 6 24 Robot Miss Streak 5 | 3 5 Penetration Max . | . . Secondary Targets 1 | . 1 Max Gunslinging Chain 1 | . 1 Shots Hit Robots 215 | 16 199 Core Hits 77 | 12 65 Critical Kills . | . . Critical Parts Destroyed 22 | . 22 Critical Strikes 22 | . 22 Destroy 3 | . 3 Smash 19 | . 19 Melee Attacks 256 | . 256 Impact 256 | . 256 Slashing . | . . Piercing . | . . Sneak Attacks 58 | . 58 Combat Hostiles . | . . Follow-up Attacks . | . . Damage Inflicted 5265 | 163 5102 Guns 2115 | 163 1952 Cannons . | . . Explosions 22 | . 22 Melee 3103 | . 3103 Ramming 25 | . 25 Kinetic 2115 | 163 1952 Thermal . | . . Explosive . | . . Electromagnetic 22 | . 22 Impact 3103 | . 3103 Slashing . | . . Piercing . | . . Highest Corruption 14 | . 14 Average Corruption 10 | . 10 Corruption Purged . | . . Corruption Blocked . | . . Effects 14 | . 14 Message Errors 3 | . 3 Matter Fused 3 | . 3 Heat Flow Errors 3 | . 3 Energy Discharges 2 | . 2 Data Loss (minor) 1 | . 1 Misfires 1 | . 1 Alerts 1 | . 1 Overload Shots . | . . Overflow Damage 1742 | . 1742 Projectiles . | . . Explosions 52 | . 52 Melee 1690 | . 1690 Knockbacks 19 | . 19 Impact 19 | . 19 Kinetic . | . . Secondary . | . . Self-Inflicted Damage 112 | . 112 Shots 1 | . 1 Rammed 7 | . 7 Targets Rammed 8 | . 8 Kicked . | . . Crushed 1 | . 1 Highest Temperature 162 | . 162 Average Temperature 26 | . 26 Received Heat Transfer 186 | . 186 Siege Activations . | . . Robots Corrupted . | . . Combat Hostiles . | . . Parts Fried 66 | . 66 Impact Corruptions 78 | . 78 Robots Melted . | . . Combat Hostiles . | . . Parts Melted . | . . Heat Transferred . | . . Parts Sabotaged . | . . Parts Stolen . | . . Parts Stripped . | . . Power Chain Reactions . | . . Alert | -11 -10 ------- Run | Yrd Mat Peak Influence 824 | 20 824 Initial . | . . Average 415 | 12 448 Maximum Alert Level 3 | . 3 Low Security (%) 22 | 100 15 Level 1 29 | . 31 Level 2 25 | . 27 Level 3 23 | . 25 Level 4 . | . . Level 5 . | . . High Security . | . . Max Security . | . . Squads Dispatched 6 | . 6 Investigation 5 | . 5 Extermination . | . . Reinforcement 1 | . 1 Assault . | . . Garrison . | . . Intercept . | . . Searches Triggered . | . . Construction Impeded . | . . Haulers Reinforced . | . . Active Scanning Responses . | . . Cargo Convoy Interrupts . | . . Stealth | -11 -10 --------- Run | Yrd Mat Distress Signals 3 | . 3 Communications Jammed . | . . Distress Signals . | . . Times Spotted 40 | . 40 Peak Tracking Total 5 | . 5 Tactical Retreats 5 | . 5 Traps | -11 -10 ------- Run | Yrd Mat Traps Triggered 4 | . 4 Indirectly . | . . Trap Hack Attempts . | . . Triggered . | . . Disarmed . | . . Reprogrammed 6 | . 6 Reused . | . . Traps Extracted . | . . Installed . | . . Triggered . | . . Machines | -11 -10 ---------- Run | Yrd Mat Machines Disabled 20 | . 20 Max in Single Turn 2 | . 2 Machines Repaired . | . . Machines Dismantled . | . . Machines Sabotaged . | . . Overloaded Fab Kills . | . . Hacking | -11 -10 --------- Run | Yrd Mat Machines Accessed 6 | . 6 Terminals 6 | . 6 Fabricators . | . . Repair Stations . | . . Recycling Units . | . . Scanalyzers . | . . Garrison Access . | . . Total Hacks 19 | . 19 Successful 6 | . 6 Failed 13 | . 13 Catastrophic 2 | . 2 Database Lockouts . | . . Manual 8 | . 8 Terminals 19 | . 19 Fabricators . | . . Repair Stations . | . . Recycling Units . | . . Scanalyzers . | . . Garrison Access . | . . Terminal Hacks 5 | . 5 Alert Level 3 | . 3 Reprogram Traps 1 | . 1 Registered Components 1 | . 1 Fabricator Hacks . | . . Repair Station Hacks . | . . Recycling Unit Hacks . | . . Scanalyzer . | . . Garrison Access Hacks . | . . Unauthorized Hacks 1 | . 1 Terminals 1 | . 1 Botnet 1 | . 1 Fabricators . | . . Repair Stations . | . . Recycling Units . | . . Scanalyzers . | . . Garrison Access . | . . Data Cores Recovered . | . . Used . | . . Hacking Detections 6 | . 6 Full Trace Events 5 | . 5 Feedback Events . | . . Feedback Blocked . | . . Robot Schematics Acquired . | . . Robots Built . | . . Authchips . | . . Time . | . . Total Robot Build Rating . | . . Part Schematics Acquired . | . . Parts Built . | . . Authchips . | . . Time . | . . Total Part Build Rating . | . . Parts Repaired . | . . Time . | . . Parts Recycled . | . . Recycled Matter . | . . Retrieved Matter . | . . Retrieved Components . | . . Parts Scanalyzed . | . . Part Schematics Acquired . | . . Parts Damaged . | . . Bothacking | -11 -10 ------------ Run | Yrd Mat Used RIF Installer . | . . Robots Hacked . | . . Non-combat . | . . Combat . | . . Robot Hacks Applied . | . . Relay Couplers Released . | . . Fabnet Peak Effective % . | . . Robots Rewired . | . . Allies Hacked . | . . Hacks Repelled . | . . Allies | -11 -10 -------- Run | Yrd Mat Total Allies . | . . Largest Group . | . . Highest-Rated Group . | . . Highest-Rated Ally . | . . Total Orders . | . . Ally Attacks . | . . Total Damage . | . . Kills . | . . Allies Corrupted . | . . Allies Melted . | . . Intel | -11 -10 ------- Run | Yrd Mat Robot Analysis Total . | . . Derelict Logs Recovered . | . . Drone Launches . | . . Drone Recoveries . | . . Exploration | -11 -10 ------------- Run | Yrd Mat Turns Passed 5950 | 450 5500 Spaces Moved 2607 | 247 2360 Core 3 | 3 . Treads 1971 | 244 1727 Legs . | . . Wheels 633 | . 633 Hover . | . . Flight . | . . Fastest Speed 50 | 50 110 Average Speed 147 | 158 146 Slowest Speed 160 | 160 160 Overloaded Moves . | . . Propulsion Burnouts . | . . Robots Hopped . | . . Cave-ins Triggered 2 | . 2 Exploration Rate (%) 56 | 14 99 Regions Visited 1 Branch Regions . Pre-discovered Areas . | . . Known Exits Taken . | . . Unknown Exits Taken 1 | 1 . Scrap Searched . | . . Spaces Dug 72 | . 72 Terrain Destroyed 222 | . 222 Melee 71 | . 71 Projectile 1 | . 1 AOE 150 | . 150 Terrain Rammed . | . . Walls Destroyed . | . . Machines Disabled . | . . Actions | -11 -10 --------- Run | Yrd Mat Total 3907 | 279 3628 Wait 806 | . 806 Move 2606 | 246 2360 Hop . | . . Pick Up 14 | 7 7 Fast Attach 10 | 7 3 Attach 1 | . 1 Detach . | . . Swap 14 | 1 13 Drop 11 | 3 8 Fire 181 | 15 166 Melee 256 | . 256 Ram . | . . Kick . | . . Crush 8 | . 8 Escape Stasis . | . . Rewire . | . . Trap . | . . Miscellaneous . | . . Route ------- -11/Scrapyard -10/Materials (discovered 6 exits: [*Mat x3] / [*Min x2] / [*Sub]) History --------- Turn | Location | Event 89 | -11/Scrapyard | Discovered new exit (range 15) 451 | -11/Scrapyard | Entered Materials 463 | -10/Materials | Build established: Mutant 669 | -10/Materials | Discovered new exit (range 16) 737 | -10/Materials | Discovered new exit (range 3) 1136 | -10/Materials | Discovered new exit (range 16) 1236 | -10/Materials | Build established: Scavenger-Mutant 1260 | -10/Materials | Core integrity fell below 50% 1325 | -10/Materials | Discovered new exit (range 16) 1896 | -10/Materials | Discovered new exit (range 3) 4276 | -10/Materials | Build established: Mutant 4713 | -10/Materials | Build established: Scavenger-Mutant 4853 | -10/Materials | Discovered new exit (range 2) 5556 | -10/Materials | Crushed by falling debris 5556 | -10/Materials | Core integrity fell below 20% 5849 | -10/Materials | Crushed by falling debris 5849 | -10/Materials | System corruption reached 10% 5853 | -10/Materials | Build established: Mutant 5951 | -10/Materials | Destroyed by Explosive Trap Last Messages --------------- 05781_ System corrupted: FCS attempts to trigger Imp. Assault Rifle. 05781_ System corrupted: Imp. Assault Rifle misfires. 05802_ JG9DBV=JIO8< O/CWB CV 05820_ System corrupted: Matter fused (-10). 05849_ The unstable cave ceiling collapses. 05849_ Crushed by falling debris. 05849_ Hammer destroyed. 05849_ System corrupted by crushing effect (+2). 05849_ Imp. Assault Rifle destroyed. 05849_ System corrupted by crushing effect (+3). 05849_ U-05 Engineer builds a Wall. 05855_ System corrupted: IFF burst signal emitted. 05870_ System corrupted: Heat flow error (+187). 05880_ K-01 Serf collects debris. 05880_ Slammed into K-01 Serf. 05882_ Acquired 9 matter. 05899_ System corrupted: Matter fused (-5). 05951_ Triggered Explosive Trap. 05951_ An explosion rips through the floor. Map ----- +----------------------------------------------------+ | | | | | | | | | ????????????????????????#######????????? | | ??????????????????????### ###??????# | | ??????????????????????# " ""######## | | ??????????????????????# " "" ! | | ???????######?????????# " "" | | ???????# #???#######"" "" | | ???????# #???# # "" | | ???????# #???# + "" | | ???????# #???# # ! "" | | ???????# #???## # "" !% | | ????#### #????# # ! "" | | #####""# #????# # ## | | # # #????# ###+########+### | | # # #????# % | | # + #????# | | # # ###### | | # # % %"""%""" """""" | | # # % """"""" """""" | | #####"##+# ! """"""" """""" | | ?## # %""""%% """""" | | ?#" # * ! %"""""%" """"" | | ?#" +^ @^^ % % | | ?#"% % #% = | | ?#" #### %##+##### # | | ?#" ! ##?#### # ## ## | | ?#""""#"###????# # ##[[!! !## | | ?##########????# %= # ##[[!!!!## | | ???????????????# *%=# ########## | | ???????????????# =%# #????????# | | ???????????##### # #????????# | | ???????????# # % # #????????# | | ???????????# # #######????????# | | ???????????# # #??????????????# | | ???????????# # % #???????????#### | | ???????????# # #???????????#" | | ?########### # #???????????#"" | | ?# ## #% #???????????#| | | ?# """ ####"# #???????????#"" < | | ?# """ # =%= #???????????#|| | | ?# """ / + #???????????#" | | ?# # #########???#" % % | | ?# ^ ### ^ " " ## ########% | | ?# ""T" ### """ ## # ! #% | | ?# """"" ### """ ## # +% | | ?# ### "" %## # =#% | | ?############ " # # ]# | +----------------------------------------------------+ Best States ------------- Heat Dissipation 25 Energy Generation 10 Energy Capacity 250 Matter Stores 300 Matter Capacity 300 Sight Range 16 Terrain Scan Density 10 Evasion (%) 40 Recoil Reduction 2 Item Schematics ----------------- None Robot Schematics ------------------ None Fabricated ------------ Nothing Alien Tech Used ----------------- None Achievements -------------- None Challenges ------------ None Game ------ Seed RegenerativeInsulationCycler Manual? 0 Play Time 00:32:36 Cumulative 41.6 hours Start 2024.04.19 @ 22:58:27 End 2024.04.19 @ 23:56:27 Sessions 1 Manual Loads 0 Difficulty Rogue Special Mode None Game No. 26 Rogue 26 Adventurer 0 Explorer 0 Win Type - Total 0 Types 0/0/0/0/0/0/0/0/0 Lore% 27 Gallery% 30 Achievement% 25 Wizard Run 0 Options --------- Layout 1 ASCII 0 Keyboard 0 Movement Arrows Keybinds 0 Fullscreen 1 Font 16/SmallcapsGlow Map View 55x38 Zoom Use 0% Tactical HUD 1 Map Filters NONE Filters NONE Steam 0 RUN: 78ba4312-dad8-4926-9fcf-f76fe59e926b